{"text_format":"3","workbook":"xlsx","n_sheets":4,"sheets":["Dashboard","Budget","Instellingen","grafiekgegevens"],"not_rendered":{"charts":2,"images":1,"defined_names":42},"read":"whole","date_system":"1900"}

{"sheet":"Dashboard","index":0,"n_rows":13,"n_cols":14,"rows_kept":13,"merged":[[2,0,4,2],[6,0,8,2],[10,0,12,2]]}
[{"$nulls":13},{"$f":"Budgetnaam&\" INTERACTIEVE BUDGETPLANNER\"","v":"FAMILIE BEEKMAN 2012 INTERACTIEVE BUDGETPLANNER"}]
[]
[{"$f":"grafiekgegevens!C38","v":{"v":4000,"d":"€ 4,000"}}]
[]
[{"$nulls":3},"inkomsten"]
[]
[{"$f":"grafiekgegevens!C39","v":{"v":5933,"d":"€ 5,933"}}]
[]
[{"$nulls":3},"expenses"]
[]
[{"$f":"grafiekgegevens!D40& \"€ \"&grafiekgegevens!C40","v":"-€ 1933"}]
[]
[{"$nulls":3},"cashflow"]

{"sheet":"Budget","index":1,"n_rows":131,"n_cols":16,"rows_kept":131,"merged":[[18,1,18,13],[27,1,27,13],[36,1,36,13],[45,1,45,13],[54,1,54,13],[61,1,61,13],[68,1,68,13],[75,1,75,13],[82,1,82,13],[89,1,89,13],[96,1,96,13],[103,1,103,13],[110,1,110,13],[117,1,117,13],[124,1,124,13]]}
[null,null,"jan","feb","mrt","apr","mei","jun","jul","aug","sep","okt","nov","dec","jaar","gem"]
[]
[]
[]
[null,"Beginsaldo",1000]
[null,"Totale inkomsten",{"$f":"SUM(tblInkomsten[jan])","v":4222},{"$f":"SUM(tblInkomsten[feb])","v":9033},{"$f":"SUM(tblInkomsten[mar])","v":4000},{"$f":"SUM(tblInkomsten[apr])","v":4045},{"$f":"SUM(tblInkomsten[may])","v":9000},{"$f":"SUM(tblInkomsten[jun])","v":1525},{"$f":"SUM(tblInkomsten[jul])","v":1500},{"$f":"SUM(tblInkomsten[aug])","v":6500},{"$f":"SUM(tblInkomsten[sep])","v":4000},{"$f":"SUM(tblInkomsten[oct])","v":4000},{"$f":"SUM(tblInkomsten[nov])","v":9000},{"$f":"SUM(tblInkomsten[dec])","v":4000},{"$f":"SUM(tblInkomsten[year])","v":60825},{"$f":"O6/12","v":{"v":5068.75,"d":"5069"}}]
[null,"Totale uitgaven",{"$f":"SUM(tblUitgavencategorie_01[jan],tblUitgavencategorie_02[jan],tblUitgavencategorie_03[jan],tblUitgavencategorie_04[jan],tblUitgavencategorie_05[jan],tblUitgavencategorie_06[jan],tblUitgavencategorie_07[jan],tblUitgavencategorie_08[jan],tblUitgavencategorie_09[jan],tblUitgavencategorie_10[jan],tblUitgavencategorie_11[jan],tblUitgavencategorie_12[jan],tblUitgavencategorie_13[jan],tblUitgavencategorie_14[jan],tblUitgavencategorie_15[jan])","v":7936},{"$f":"SUM(tblUitgavencategorie_01[feb],tblUitgavencategorie_02[feb],tblUitgavencategorie_03[feb],tblUitgavencategorie_04[feb],tblUitgavencategorie_05[feb],tblUitgavencategorie_06[feb],tblUitgavencategorie_07[feb],tblUitgavencategorie_08[feb],tblUitgavencategorie_09[feb],tblUitgavencategorie_10[feb],tblUitgavencategorie_11[feb],tblUitgavencategorie_12[feb],tblUitgavencategorie_13[feb],tblUitgavencategorie_14[feb],tblUitgavencategorie_15[feb])","v":5243},{"$f":"SUM(tblUitgavencategorie_01[mar],tblUitgavencategorie_02[mar],tblUitgavencategorie_03[mar],tblUitgavencategorie_04[mar],tblUitgavencategorie_05[mar],tblUitgavencategorie_06[mar],tblUitgavencategorie_07[mar],tblUitgavencategorie_08[mar],tblUitgavencategorie_09[mar],tblUitgavencategorie_10[mar],tblUitgavencategorie_11[mar],tblUitgavencategorie_12[mar],tblUitgavencategorie_13[mar],tblUitgavencategorie_14[mar],tblUitgavencategorie_15[mar])","v":5933},{"$f":"SUM(tblUitgavencategorie_01[apr],tblUitgavencategorie_02[apr],tblUitgavencategorie_03[apr],tblUitgavencategorie_04[apr],tblUitgavencategorie_05[apr],tblUitgavencategorie_06[apr],tblUitgavencategorie_07[apr],tblUitgavencategorie_08[apr],tblUitgavencategorie_09[apr],tblUitgavencategorie_10[apr],tblUitgavencategorie_11[apr],tblUitgavencategorie_12[apr],tblUitgavencategorie_13[apr],tblUitgavencategorie_14[apr],tblUitgavencategorie_15[apr])","v":5858},{"$f":"SUM(tblUitgavencategorie_01[may],tblUitgavencategorie_02[may],tblUitgavencategorie_03[may],tblUitgavencategorie_04[may],tblUitgavencategorie_05[may],tblUitgavencategorie_06[may],tblUitgavencategorie_07[may],tblUitgavencategorie_08[may],tblUitgavencategorie_09[may],tblUitgavencategorie_10[may],tblUitgavencategorie_11[may],tblUitgavencategorie_12[may],tblUitgavencategorie_13[may],tblUitgavencategorie_14[may],tblUitgavencategorie_15[may])","v":5468},{"$f":"SUM(tblUitgavencategorie_01[jun],tblUitgavencategorie_02[jun],tblUitgavencategorie_03[jun],tblUitgavencategorie_04[jun],tblUitgavencategorie_05[jun],tblUitgavencategorie_06[jun],tblUitgavencategorie_07[jun],tblUitgavencategorie_08[jun],tblUitgavencategorie_09[jun],tblUitgavencategorie_10[jun],tblUitgavencategorie_11[jun],tblUitgavencategorie_12[jun],tblUitgavencategorie_13[jun],tblUitgavencategorie_14[jun],tblUitgavencategorie_15[jun])","v":5118},{"$f":"SUM(tblUitgavencategorie_01[jul],tblUitgavencategorie_02[jul],tblUitgavencategorie_03[jul],tblUitgavencategorie_04[jul],tblUitgavencategorie_05[jul],tblUitgavencategorie_06[jul],tblUitgavencategorie_07[jul],tblUitgavencategorie_08[jul],tblUitgavencategorie_09[jul],tblUitgavencategorie_10[jul],tblUitgavencategorie_11[jul],tblUitgavencategorie_12[jul],tblUitgavencategorie_13[jul],tblUitgavencategorie_14[jul],tblUitgavencategorie_15[jul])","v":5743},{"$f":"SUM(tblUitgavencategorie_01[aug],tblUitgavencategorie_02[aug],tblUitgavencategorie_03[aug],tblUitgavencategorie_04[aug],tblUitgavencategorie_05[aug],tblUitgavencategorie_06[aug],tblUitgavencategorie_07[aug],tblUitgavencategorie_08[aug],tblUitgavencategorie_09[aug],tblUitgavencategorie_10[aug],tblUitgavencategorie_11[aug],tblUitgavencategorie_12[aug],tblUitgavencategorie_13[aug],tblUitgavencategorie_14[aug],tblUitgavencategorie_15[aug])","v":5353},{"$f":"SUM(tblUitgavencategorie_01[sep],tblUitgavencategorie_02[sep],tblUitgavencategorie_03[sep],tblUitgavencategorie_04[sep],tblUitgavencategorie_05[sep],tblUitgavencategorie_06[sep],tblUitgavencategorie_07[sep],tblUitgavencategorie_08[sep],tblUitgavencategorie_09[sep],tblUitgavencategorie_10[sep],tblUitgavencategorie_11[sep],tblUitgavencategorie_12[sep],tblUitgavencategorie_13[sep],tblUitgavencategorie_14[sep],tblUitgavencategorie_15[sep])","v":5983},{"$f":"SUM(tblUitgavencategorie_01[oct],tblUitgavencategorie_02[oct],tblUitgavencategorie_03[oct],tblUitgavencategorie_04[oct],tblUitgavencategorie_05[oct],tblUitgavencategorie_06[oct],tblUitgavencategorie_07[oct],tblUitgavencategorie_08[oct],tblUitgavencategorie_09[oct],tblUitgavencategorie_10[oct],tblUitgavencategorie_11[oct],tblUitgavencategorie_12[oct],tblUitgavencategorie_13[oct],tblUitgavencategorie_14[oct],tblUitgavencategorie_15[oct])","v":5943},{"$f":"SUM(tblUitgavencategorie_01[nov],tblUitgavencategorie_02[nov],tblUitgavencategorie_03[nov],tblUitgavencategorie_04[nov],tblUitgavencategorie_05[nov],tblUitgavencategorie_06[nov],tblUitgavencategorie_07[nov],tblUitgavencategorie_08[nov],tblUitgavencategorie_09[nov],tblUitgavencategorie_10[nov],tblUitgavencategorie_11[nov],tblUitgavencategorie_12[nov],tblUitgavencategorie_13[nov],tblUitgavencategorie_14[nov],tblUitgavencategorie_15[nov])","v":5058},{"$f":"SUM(tblUitgavencategorie_01[dec],tblUitgavencategorie_02[dec],tblUitgavencategorie_03[dec],tblUitgavencategorie_04[dec],tblUitgavencategorie_05[dec],tblUitgavencategorie_06[dec],tblUitgavencategorie_07[dec],tblUitgavencategorie_08[dec],tblUitgavencategorie_09[dec],tblUitgavencategorie_10[dec],tblUitgavencategorie_11[dec],tblUitgavencategorie_12[dec],tblUitgavencategorie_13[dec],tblUitgavencategorie_14[dec],tblUitgavencategorie_15[dec])","v":4958},{"$f":"SUM(tblUitgavencategorie_01[year],tblUitgavencategorie_02[year],tblUitgavencategorie_03[year],tblUitgavencategorie_04[year],tblUitgavencategorie_05[year],tblUitgavencategorie_06[year],tblUitgavencategorie_07[year],tblUitgavencategorie_08[year],tblUitgavencategorie_09[year],tblUitgavencategorie_10[year],tblUitgavencategorie_11[year],tblUitgavencategorie_12[year],tblUitgavencategorie_13[year],tblUitgavencategorie_14[year],tblUitgavencategorie_15[year])","v":68594},{"$f":"O7/12","v":{"v":5716.166666666667,"d":"5716"}}]
[null,"Netto-inkomen",{"$f":"C6-C7","v":-3714},{"$f":"D6-D7","v":3790},-1933,-1813,3532,-3593,-4243,1147,-1983,-1943,3942,-958,-7769,{"$f":"O8/12","v":{"v":-647.4166666666666,"d":"-647"}}]
[null,"TOTALE CASHFLOW",{"$f":"C5+C6-C7","v":-2714},{"$f":"C9+D6-D7","v":1076},{"$f":"D9+E6-E7","v":-857},-2670,862,-2731,-6974,-5827,-7810,-9753,-5811,-6769]
[]
[]
[null,"inkomsten"]
[null,"Salaris en fooien",4000,4000,4000,4000,4000,1000,1000,1000,4000,4000,4000,4000,{"$f":"SUM(tblInkomsten[[#This Row],[jan]:[dec]])","v":39000},{"$f":"tblInkomsten[[#This Row],[year]]/12","v":3250}]
[null,"Rente-inkomsten",222,33,null,45,null,25,{"$nulls":6},{"$f":"SUM(tblInkomsten[[#This Row],[jan]:[dec]])","v":325},{"$f":"tblInkomsten[[#This Row],[year]]/12","v":{"v":27.083333333333332,"d":"27"}}]
[null,"Dividend",null,5000,null,null,5000,null,null,5000,null,null,5000,null,{"$f":"SUM(tblInkomsten[[#This Row],[jan]:[dec]])","v":20000},{"$f":"tblInkomsten[[#This Row],[year]]/12","v":{"v":1666.6666666666667,"d":"1667"}}]
[null,"Restituties/vergoedingen",{"$nulls":5},500,500,500,{"$nulls":4},{"$f":"SUM(tblInkomsten[[#This Row],[jan]:[dec]])","v":1500},{"$f":"tblInkomsten[[#This Row],[year]]/12","v":125}]
[null,"Overig",{"$nulls":12},{"$f":"SUM(tblInkomsten[[#This Row],[jan]:[dec]])","v":0},{"$f":"tblInkomsten[[#This Row],[year]]/12","v":0}]
[null,"TOTALE INKOMSTEN",{"$f":"SUM(tblInkomsten[jan])","v":4222},{"$f":"SUM(tblInkomsten[feb])","v":9033},{"$f":"SUM(tblInkomsten[mar])","v":4000},{"$f":"SUM(tblInkomsten[apr])","v":4045},{"$f":"SUM(tblInkomsten[may])","v":9000},{"$f":"SUM(tblInkomsten[jun])","v":1525},{"$f":"SUM(tblInkomsten[jul])","v":1500},{"$f":"SUM(tblInkomsten[aug])","v":6500},{"$f":"SUM(tblInkomsten[sep])","v":4000},{"$f":"SUM(tblInkomsten[oct])","v":4000},{"$f":"SUM(tblInkomsten[nov])","v":9000},{"$f":"SUM(tblInkomsten[dec])","v":4000},{"$f":"SUM(tblInkomsten[year])","v":60825},{"$f":"tblInkomsten[[#Totals],[year]]/12","v":{"v":5068.75,"d":"5069"}}]
[]
[]
[null,"huis"]
[null,"Hypotheek/huur",850,850,850,850,850,850,850,850,850,850,900,900,{"$f":"SUM(tblUitgavencategorie_01[[#This Row],[jan]:[dec]])","v":10300},{"$f":"tblUitgavencategorie_01[[#This Row],[year]]/12","v":{"v":858.3333333333334,"d":"858"}}]
[null,"Energie",200,200,175,150,150,175,225,275,200,150,150,150,{"$f":"SUM(tblUitgavencategorie_01[[#This Row],[jan]:[dec]])","v":2200},{"$f":"tblUitgavencategorie_01[[#This Row],[year]]/12","v":{"v":183.33333333333334,"d":"183"}}]
[null,"Telefoon",50,50,100,100,50,50,100,100,50,50,50,50,{"$f":"SUM(tblUitgavencategorie_01[[#This Row],[jan]:[dec]])","v":800},{"$f":"tblUitgavencategorie_01[[#This Row],[year]]/12","v":{"v":66.66666666666667,"d":"67"}}]
[null,"Kabel/satelliet",69,69,69,69,69,69,69,69,69,69,69,69,{"$f":"SUM(tblUitgavencategorie_01[[#This Row],[jan]:[dec]])","v":828},{"$f":"tblUitgavencategorie_01[[#This Row],[year]]/12","v":69}]
[null,"Internet",39,39,39,39,39,39,39,39,39,39,39,39,{"$f":"SUM(tblUitgavencategorie_01[[#This Row],[jan]:[dec]])","v":468},{"$f":"tblUitgavencategorie_01[[#This Row],[year]]/12","v":39}]
[null,{"$f":"UPPER(\"TOTAAL \" & B21)","v":"TOTAAL HUIS"},{"$f":"SUM(tblUitgavencategorie_01[jan])","v":1208},{"$f":"SUM(tblUitgavencategorie_01[feb])","v":1208},{"$f":"SUM(tblUitgavencategorie_01[mar])","v":1233},{"$f":"SUM(tblUitgavencategorie_01[apr])","v":1208},{"$f":"SUM(tblUitgavencategorie_01[may])","v":1158},{"$f":"SUM(tblUitgavencategorie_01[jun])","v":1183},{"$f":"SUM(tblUitgavencategorie_01[jul])","v":1283},{"$f":"SUM(tblUitgavencategorie_01[aug])","v":1333},{"$f":"SUM(tblUitgavencategorie_01[sep])","v":1208},{"$f":"SUM(tblUitgavencategorie_01[oct])","v":1158},{"$f":"SUM(tblUitgavencategorie_01[nov])","v":1208},{"$f":"SUM(tblUitgavencategorie_01[dec])","v":1208},{"$f":"SUM(tblUitgavencategorie_01[year])","v":14596},{"$f":"tblUitgavencategorie_01[[#Totals],[year]]/12","v":{"v":1216.3333333333333,"d":"1216"}}]
[]
[]
[null,"levensonderhoud"]
[null,"Boodschappen",345,250,200,400,350,250,400,350,250,400,350,250,{"$f":"SUM(tblUitgavencategorie_02[[#This Row],[jan]:[dec]])","v":3795},{"$f":"tblUitgavencategorie_02[[#This Row],[year]]/12","v":{"v":316.25,"d":"316"}}]
[null,"Kleding",300,null,null,300,null,null,300,null,null,300,null,null,{"$f":"SUM(tblUitgavencategorie_02[[#This Row],[jan]:[dec]])","v":1200},{"$f":"tblUitgavencategorie_02[[#This Row],[year]]/12","v":100}]
[null,"Uit eten gaan",125,125,300,125,125,200,125,125,125,125,125,125,{"$f":"SUM(tblUitgavencategorie_02[[#This Row],[jan]:[dec]])","v":1750},{"$f":"tblUitgavencategorie_02[[#This Row],[year]]/12","v":{"v":145.83333333333334,"d":"146"}}]
[null,"Kapper",25,null,50,null,25,null,50,null,25,null,100,null,{"$f":"SUM(tblUitgavencategorie_02[[#This Row],[jan]:[dec]])","v":275},{"$f":"tblUitgavencategorie_02[[#This Row],[year]]/12","v":{"v":22.916666666666668,"d":"23"}}]
[null,"Overig",{"$nulls":12},{"$f":"SUM(tblUitgavencategorie_02[[#This Row],[jan]:[dec]])","v":0},{"$f":"tblUitgavencategorie_02[[#This Row],[year]]/12","v":0}]
[null,{"$f":"UPPER(\"TOTAAL \" & B30)","v":"TOTAAL LEVENSONDERHOUD"},{"$f":"SUM(tblUitgavencategorie_02[jan])","v":795},{"$f":"SUM(tblUitgavencategorie_02[feb])","v":375},{"$f":"SUM(tblUitgavencategorie_02[mar])","v":550},{"$f":"SUM(tblUitgavencategorie_02[apr])","v":825},{"$f":"SUM(tblUitgavencategorie_02[may])","v":500},{"$f":"SUM(tblUitgavencategorie_02[jun])","v":450},{"$f":"SUM(tblUitgavencategorie_02[jul])","v":875},{"$f":"SUM(tblUitgavencategorie_02[aug])","v":475},{"$f":"SUM(tblUitgavencategorie_02[sep])","v":400},{"$f":"SUM(tblUitgavencategorie_02[oct])","v":825},{"$f":"SUM(tblUitgavencategorie_02[nov])","v":575},{"$f":"SUM(tblUitgavencategorie_02[dec])","v":375},{"$f":"SUM(tblUitgavencategorie_02[year])","v":7020},{"$f":"tblUitgavencategorie_02[[#Totals],[year]]/12","v":585}]
[]
[]
[null,"kinderen"]
[null,"Schoolspullen",123,null,100,{"$nulls":4},345,{"$nulls":4},{"$f":"SUM(tblUitgavencategorie_03[[#This Row],[jan]:[dec]])","v":568},{"$f":"tblUitgavencategorie_03[[#This Row],[year]]/12","v":{"v":47.333333333333336,"d":"47"}}]
[null,"Kleding",null,100,null,null,100,{"$nulls":3},100,null,null,100,{"$f":"SUM(tblUitgavencategorie_03[[#This Row],[jan]:[dec]])","v":400},{"$f":"tblUitgavencategorie_03[[#This Row],[year]]/12","v":{"v":33.333333333333336,"d":"33"}}]
[null,"Schoollunch",50,50,50,50,50,50,null,null,50,50,50,50,{"$f":"SUM(tblUitgavencategorie_03[[#This Row],[jan]:[dec]])","v":500},{"$f":"tblUitgavencategorie_03[[#This Row],[year]]/12","v":{"v":41.666666666666664,"d":"42"}}]
[null,"Medisch",200,200,200,200,200,200,200,200,200,200,200,200,{"$f":"SUM(tblUitgavencategorie_03[[#This Row],[jan]:[dec]])","v":2400},{"$f":"tblUitgavencategorie_03[[#This Row],[year]]/12","v":200}]
[null,"Overig",2000,150,{"$nulls":3},200,{"$nulls":3},100,null,null,{"$f":"SUM(tblUitgavencategorie_03[[#This Row],[jan]:[dec]])","v":2450},{"$f":"tblUitgavencategorie_03[[#This Row],[year]]/12","v":{"v":204.16666666666666,"d":"204"}}]
[null,{"$f":"UPPER(\"TOTAAL \" & B39)","v":"TOTAAL KINDEREN"},{"$f":"SUM(tblUitgavencategorie_03[jan])","v":2373},{"$f":"SUM(tblUitgavencategorie_03[feb])","v":500},{"$f":"SUM(tblUitgavencategorie_03[mar])","v":350},{"$f":"SUM(tblUitgavencategorie_03[apr])","v":250},{"$f":"SUM(tblUitgavencategorie_03[may])","v":350},{"$f":"SUM(tblUitgavencategorie_03[jun])","v":450},{"$f":"SUM(tblUitgavencategorie_03[jul])","v":200},{"$f":"SUM(tblUitgavencategorie_03[aug])","v":545},{"$f":"SUM(tblUitgavencategorie_03[sep])","v":350},{"$f":"SUM(tblUitgavencategorie_03[oct])","v":350},{"$f":"SUM(tblUitgavencategorie_03[nov])","v":250},{"$f":"SUM(tblUitgavencategorie_03[dec])","v":350},{"$f":"SUM(tblUitgavencategorie_03[year])","v":6318},{"$f":"tblUitgavencategorie_03[[#Totals],[year]]/12","v":{"v":526.5,"d":"527"}}]
[]
[]
[null,"vervoer"]
[null,"Autokosten",600,600,600,600,600,600,600,600,600,600,600,600,{"$f":"SUM(tblUitgavencategorie_04[[#This Row],[jan]:[dec]])","v":7200},{"$f":"tblUitgavencategorie_04[[#This Row],[year]]/12","v":600}]
[null,"Brandstof",325,325,325,325,325,500,500,500,325,325,325,325,{"$f":"SUM(tblUitgavencategorie_04[[#This Row],[jan]:[dec]])","v":4425},{"$f":"tblUitgavencategorie_04[[#This Row],[year]]/12","v":{"v":368.75,"d":"369"}}]
[null,"Reparatie",null,100,null,100,null,100,null,100,null,100,null,null,{"$f":"SUM(tblUitgavencategorie_04[[#This Row],[jan]:[dec]])","v":500},{"$f":"tblUitgavencategorie_04[[#This Row],[year]]/12","v":{"v":41.666666666666664,"d":"42"}}]
[null,"Wegenbelasting",185,{"$nulls":7},225,{"$nulls":3},{"$f":"SUM(tblUitgavencategorie_04[[#This Row],[jan]:[dec]])","v":410},{"$f":"tblUitgavencategorie_04[[#This Row],[year]]/12","v":{"v":34.166666666666664,"d":"34"}}]
[null,"Overig",{"$nulls":4},400,{"$nulls":7},{"$f":"SUM(tblUitgavencategorie_04[[#This Row],[jan]:[dec]])","v":400},{"$f":"tblUitgavencategorie_04[[#This Row],[year]]/12","v":{"v":33.333333333333336,"d":"33"}}]
[null,{"$f":"UPPER(\"TOTAALl \" & B48)","v":"TOTAALL VERVOER"},{"$f":"SUM(tblUitgavencategorie_04[jan])","v":1110},{"$f":"SUM(tblUitgavencategorie_04[feb])","v":1025},{"$f":"SUM(tblUitgavencategorie_04[mar])","v":925},{"$f":"SUM(tblUitgavencategorie_04[apr])","v":1025},{"$f":"SUM(tblUitgavencategorie_04[may])","v":1325},{"$f":"SUM(tblUitgavencategorie_04[jun])","v":1200},{"$f":"SUM(tblUitgavencategorie_04[jul])","v":1100},{"$f":"SUM(tblUitgavencategorie_04[aug])","v":1200},{"$f":"SUM(tblUitgavencategorie_04[sep])","v":1150},{"$f":"SUM(tblUitgavencategorie_04[oct])","v":1025},{"$f":"SUM(tblUitgavencategorie_04[nov])","v":925},{"$f":"SUM(tblUitgavencategorie_04[dec])","v":925},{"$f":"SUM(tblUitgavencategorie_04[year])","v":12935},{"$f":"tblUitgavencategorie_04[[#Totals],[year]]/12","v":{"v":1077.9166666666667,"d":"1078"}}]
[]
[]
[null,"gezondheid"]
[null,"Dokter/tandarts",null,35,null,null,35,35,35,null,null,35,null,null,{"$f":"SUM(tblUitgavencategorie_05[[#This Row],[jan]:[dec]])","v":175},{"$f":"tblUitgavencategorie_05[[#This Row],[year]]/12","v":{"v":14.583333333333334,"d":"15"}}]
[null,"Medicijnen/geneesmiddelen",25,25,25,25,25,25,25,25,25,25,25,25,{"$f":"SUM(tblUitgavencategorie_05[[#This Row],[jan]:[dec]])","v":300},{"$f":"tblUitgavencategorie_05[[#This Row],[year]]/12","v":25}]
[null,"Overig",null,null,150,{"$nulls":5},150,{"$nulls":3},{"$f":"SUM(tblUitgavencategorie_05[[#This Row],[jan]:[dec]])","v":300},{"$f":"tblUitgavencategorie_05[[#This Row],[year]]/12","v":25}]
[null,{"$f":"UPPER(\"TOTAAL \" & B57)","v":"TOTAAL GEZONDHEID"},{"$f":"SUM(tblUitgavencategorie_05[jan])","v":25},{"$f":"SUM(tblUitgavencategorie_05[feb])","v":60},{"$f":"SUM(tblUitgavencategorie_05[mar])","v":175},{"$f":"SUM(tblUitgavencategorie_05[apr])","v":25},{"$f":"SUM(tblUitgavencategorie_05[may])","v":60},{"$f":"SUM(tblUitgavencategorie_05[jun])","v":60},{"$f":"SUM(tblUitgavencategorie_05[jul])","v":60},{"$f":"SUM(tblUitgavencategorie_05[aug])","v":25},{"$f":"SUM(tblUitgavencategorie_05[sep])","v":175},{"$f":"SUM(tblUitgavencategorie_05[oct])","v":60},{"$f":"SUM(tblUitgavencategorie_05[nov])","v":25},{"$f":"SUM(tblUitgavencategorie_05[dec])","v":25},{"$f":"SUM(tblUitgavencategorie_05[year])","v":775},{"$f":"tblUitgavencategorie_05[[#Totals],[year]]/12","v":{"v":64.58333333333333,"d":"65"}}]
[]
[]
[null,"verzekeringen"]
[null,"Auto",150,150,150,150,150,150,150,150,150,150,150,150,{"$f":"SUM(tblUitgavencategorie_06[[#This Row],[jan]:[dec]])","v":1800},{"$f":"tblUitgavencategorie_06[[#This Row],[year]]/12","v":150}]
[null,"Ziektekosten",675,675,675,675,675,675,675,675,675,675,675,675,{"$f":"SUM(tblUitgavencategorie_06[[#This Row],[jan]:[dec]])","v":8100},{"$f":"tblUitgavencategorie_06[[#This Row],[year]]/12","v":675}]
[null,"Leven",150,150,150,150,150,150,150,150,150,150,150,150,{"$f":"SUM(tblUitgavencategorie_06[[#This Row],[jan]:[dec]])","v":1800},{"$f":"tblUitgavencategorie_06[[#This Row],[year]]/12","v":150}]
[null,{"$f":"UPPER(\"TOTAALl \" & B64)","v":"TOTAALL VERZEKERINGEN"},{"$f":"SUM(tblUitgavencategorie_06[jan])","v":975},{"$f":"SUM(tblUitgavencategorie_06[feb])","v":975},{"$f":"SUM(tblUitgavencategorie_06[mar])","v":975},{"$f":"SUM(tblUitgavencategorie_06[apr])","v":975},{"$f":"SUM(tblUitgavencategorie_06[may])","v":975},{"$f":"SUM(tblUitgavencategorie_06[jun])","v":975},{"$f":"SUM(tblUitgavencategorie_06[jul])","v":975},{"$f":"SUM(tblUitgavencategorie_06[aug])","v":975},{"$f":"SUM(tblUitgavencategorie_06[sep])","v":975},{"$f":"SUM(tblUitgavencategorie_06[oct])","v":975},{"$f":"SUM(tblUitgavencategorie_06[nov])","v":975},{"$f":"SUM(tblUitgavencategorie_06[dec])","v":975},{"$f":"SUM(tblUitgavencategorie_06[year])","v":11700},{"$f":"tblUitgavencategorie_06[[#Totals],[year]]/12","v":975}]
[]
[]
[null,"onderwijs"]
[null,"Schoolgeld",null,null,400,{"$nulls":5},400,{"$nulls":3},{"$f":"SUM(tblUitgavencategorie_07[[#This Row],[jan]:[dec]])","v":800},{"$f":"tblUitgavencategorie_07[[#This Row],[year]]/12","v":{"v":66.66666666666667,"d":"67"}}]
[null,"Boeken",null,null,225,{"$nulls":5},225,{"$nulls":3},{"$f":"SUM(tblUitgavencategorie_07[[#This Row],[jan]:[dec]])","v":450},{"$f":"tblUitgavencategorie_07[[#This Row],[year]]/12","v":{"v":37.5,"d":"38"}}]
[null,"Overig",{"$nulls":12},{"$f":"SUM(tblUitgavencategorie_07[[#This Row],[jan]:[dec]])","v":0},{"$f":"tblUitgavencategorie_07[[#This Row],[year]]/12","v":0}]
[null,{"$f":"UPPER(\"TOTAAL \" & B71)","v":"TOTAAL ONDERWIJS"},{"$f":"SUM(tblUitgavencategorie_07[jan])","v":0},{"$f":"SUM(tblUitgavencategorie_07[feb])","v":0},{"$f":"SUM(tblUitgavencategorie_07[mar])","v":625},{"$f":"SUM(tblUitgavencategorie_07[apr])","v":0},{"$f":"SUM(tblUitgavencategorie_07[may])","v":0},{"$f":"SUM(tblUitgavencategorie_07[jun])","v":0},{"$f":"SUM(tblUitgavencategorie_07[jul])","v":0},{"$f":"SUM(tblUitgavencategorie_07[aug])","v":0},{"$f":"SUM(tblUitgavencategorie_07[sep])","v":625},{"$f":"SUM(tblUitgavencategorie_07[oct])","v":0},{"$f":"SUM(tblUitgavencategorie_07[nov])","v":0},{"$f":"SUM(tblUitgavencategorie_07[dec])","v":0},{"$f":"SUM(tblUitgavencategorie_07[year])","v":1250},{"$f":"tblUitgavencategorie_07[[#Totals],[year]]/12","v":{"v":104.16666666666667,"d":"104"}}]
[]
[]
[null,"liefdadigheid"]
[null,"Collectes",null,100,{"$nulls":3},100,{"$nulls":3},100,null,null,{"$f":"SUM(tblUitgavencategorie_08[[#This Row],[jan]:[dec]])","v":300},{"$f":"tblUitgavencategorie_08[[#This Row],[year]]/12","v":25}]
[null,"Donaties",null,null,100,null,100,null,100,null,100,null,100,null,{"$f":"SUM(tblUitgavencategorie_08[[#This Row],[jan]:[dec]])","v":500},{"$f":"tblUitgavencategorie_08[[#This Row],[year]]/12","v":{"v":41.666666666666664,"d":"42"}}]
[null,"Overig",{"$nulls":3},100,{"$nulls":3},100,{"$nulls":3},100,{"$f":"SUM(tblUitgavencategorie_08[[#This Row],[jan]:[dec]])","v":300},{"$f":"tblUitgavencategorie_08[[#This Row],[year]]/12","v":25}]
[null,{"$f":"UPPER(\"TOTAAL \" & B78)","v":"TOTAAL LIEFDADIGHEID"},{"$f":"SUM(tblUitgavencategorie_08[jan])","v":0},{"$f":"SUM(tblUitgavencategorie_08[feb])","v":100},{"$f":"SUM(tblUitgavencategorie_08[mar])","v":100},{"$f":"SUM(tblUitgavencategorie_08[apr])","v":100},{"$f":"SUM(tblUitgavencategorie_08[may])","v":100},{"$f":"SUM(tblUitgavencategorie_08[jun])","v":100},{"$f":"SUM(tblUitgavencategorie_08[jul])","v":100},{"$f":"SUM(tblUitgavencategorie_08[aug])","v":100},{"$f":"SUM(tblUitgavencategorie_08[sep])","v":100},{"$f":"SUM(tblUitgavencategorie_08[oct])","v":100},{"$f":"SUM(tblUitgavencategorie_08[nov])","v":100},{"$f":"SUM(tblUitgavencategorie_08[dec])","v":100},{"$f":"SUM(tblUitgavencategorie_08[year])","v":1100},{"$f":"tblUitgavencategorie_08[[#Totals],[year]]/12","v":{"v":91.66666666666667,"d":"92"}}]
[]
[]
[null,"sparen"]
[null,"Buffer voor noodgevallen",100,100,100,100,100,{"$nulls":3},100,100,100,100,{"$f":"SUM(tblUitgavencategorie_09[[#This Row],[jan]:[dec]])","v":900},{"$f":"tblUitgavencategorie_09[[#This Row],[year]]/12","v":75}]
[null,"Pensioen (bijdrage, pensioenrekening)",500,500,500,500,500,500,500,500,500,500,500,500,{"$f":"SUM(tblUitgavencategorie_09[[#This Row],[jan]:[dec]])","v":6000},{"$f":"tblUitgavencategorie_09[[#This Row],[year]]/12","v":500}]
[null,"Overboeken naar spaarrekening",200,200,200,200,200,{"$nulls":3},200,200,200,200,{"$f":"SUM(tblUitgavencategorie_09[[#This Row],[jan]:[dec]])","v":1800},{"$f":"tblUitgavencategorie_09[[#This Row],[year]]/12","v":150}]
[null,{"$f":"UPPER(\"TOTAAL \" & B85)","v":"TOTAAL SPAREN"},{"$f":"SUM(tblUitgavencategorie_09[jan])","v":800},{"$f":"SUM(tblUitgavencategorie_09[feb])","v":800},{"$f":"SUM(tblUitgavencategorie_09[mar])","v":800},{"$f":"SUM(tblUitgavencategorie_09[apr])","v":800},{"$f":"SUM(tblUitgavencategorie_09[may])","v":800},{"$f":"SUM(tblUitgavencategorie_09[jun])","v":500},{"$f":"SUM(tblUitgavencategorie_09[jul])","v":500},{"$f":"SUM(tblUitgavencategorie_09[aug])","v":500},{"$f":"SUM(tblUitgavencategorie_09[sep])","v":800},{"$f":"SUM(tblUitgavencategorie_09[oct])","v":800},{"$f":"SUM(tblUitgavencategorie_09[nov])","v":800},{"$f":"SUM(tblUitgavencategorie_09[dec])","v":800},{"$f":"SUM(tblUitgavencategorie_09[year])","v":8700},{"$f":"tblUitgavencategorie_09[[#Totals],[year]]/12","v":725}]
[]
[]
[null,"schulden"]
[null,"Creditcard 1",145,145,145,145,145,145,145,145,145,145,145,145,{"$f":"SUM(tblUitgavencategorie_10[[#This Row],[jan]:[dec]])","v":1740},{"$f":"tblUitgavencategorie_10[[#This Row],[year]]/12","v":145}]
[null,"Gemeentelijke belastingen",450,null,null,450,null,null,450,null,null,450,null,null,{"$f":"SUM(tblUitgavencategorie_10[[#This Row],[jan]:[dec]])","v":1800},{"$f":"tblUitgavencategorie_10[[#This Row],[year]]/12","v":150}]
[null,"Studielening",55,55,55,55,55,55,55,55,55,55,55,55,{"$f":"SUM(tblUitgavencategorie_10[[#This Row],[jan]:[dec]])","v":660},{"$f":"tblUitgavencategorie_10[[#This Row],[year]]/12","v":55}]
[null,{"$f":"UPPER(\"TOTAAL \" & B92)","v":"TOTAAL SCHULDEN"},{"$f":"SUM(tblUitgavencategorie_10[jan])","v":650},{"$f":"SUM(tblUitgavencategorie_10[feb])","v":200},{"$f":"SUM(tblUitgavencategorie_10[mar])","v":200},{"$f":"SUM(tblUitgavencategorie_10[apr])","v":650},{"$f":"SUM(tblUitgavencategorie_10[may])","v":200},{"$f":"SUM(tblUitgavencategorie_10[jun])","v":200},{"$f":"SUM(tblUitgavencategorie_10[jul])","v":650},{"$f":"SUM(tblUitgavencategorie_10[aug])","v":200},{"$f":"SUM(tblUitgavencategorie_10[sep])","v":200},{"$f":"SUM(tblUitgavencategorie_10[oct])","v":650},{"$f":"SUM(tblUitgavencategorie_10[nov])","v":200},{"$f":"SUM(tblUitgavencategorie_10[dec])","v":200},{"$f":"SUM(tblUitgavencategorie_10[year])","v":4200},{"$f":"tblUitgavencategorie_10[[#Totals],[year]]/12","v":350}]
[]
[]
[null," "]
[{"$nulls":14},{"$f":"SUM(tblUitgavencategorie_11[[#This Row],[jan]:[dec]])","v":0},{"$f":"tblUitgavencategorie_11[[#This Row],[year]]/12","v":0}]
[{"$nulls":14},{"$f":"SUM(tblUitgavencategorie_11[[#This Row],[jan]:[dec]])","v":0},{"$f":"tblUitgavencategorie_11[[#This Row],[year]]/12","v":0}]
[{"$nulls":14},{"$f":"SUM(tblUitgavencategorie_11[[#This Row],[jan]:[dec]])","v":0},{"$f":"tblUitgavencategorie_11[[#This Row],[year]]/12","v":0}]
[null,{"$f":"UPPER(\"TOTAAL \" & B99)","v":"TOTAAL  "},{"$f":"SUM(tblUitgavencategorie_11[jan])","v":0},{"$f":"SUM(tblUitgavencategorie_11[feb])","v":0},{"$f":"SUM(tblUitgavencategorie_11[mar])","v":0},{"$f":"SUM(tblUitgavencategorie_11[apr])","v":0},{"$f":"SUM(tblUitgavencategorie_11[may])","v":0},{"$f":"SUM(tblUitgavencategorie_11[jun])","v":0},{"$f":"SUM(tblUitgavencategorie_11[jul])","v":0},{"$f":"SUM(tblUitgavencategorie_11[aug])","v":0},{"$f":"SUM(tblUitgavencategorie_11[sep])","v":0},{"$f":"SUM(tblUitgavencategorie_11[oct])","v":0},{"$f":"SUM(tblUitgavencategorie_11[nov])","v":0},{"$f":"SUM(tblUitgavencategorie_11[dec])","v":0},{"$f":"SUM(tblUitgavencategorie_11[year])","v":0},{"$f":"tblUitgavencategorie_11[[#Totals],[year]]/12","v":0}]
[]
[]
[null," "]
[{"$nulls":14},{"$f":"SUM(tblUitgavencategorie_12[[#This Row],[jan]:[dec]])","v":0},{"$f":"tblUitgavencategorie_12[[#This Row],[year]]/12","v":0}]
[{"$nulls":14},{"$f":"SUM(tblUitgavencategorie_12[[#This Row],[jan]:[dec]])","v":0},{"$f":"tblUitgavencategorie_12[[#This Row],[year]]/12","v":0}]
[{"$nulls":14},{"$f":"SUM(tblUitgavencategorie_12[[#This Row],[jan]:[dec]])","v":0},{"$f":"tblUitgavencategorie_12[[#This Row],[year]]/12","v":0}]
[null,{"$f":"UPPER(\"TOTAAL \" & B106)","v":"TOTAAL  "},{"$f":"SUM(tblUitgavencategorie_12[jan])","v":0},{"$f":"SUM(tblUitgavencategorie_12[feb])","v":0},{"$f":"SUM(tblUitgavencategorie_12[mar])","v":0},{"$f":"SUM(tblUitgavencategorie_12[apr])","v":0},{"$f":"SUM(tblUitgavencategorie_12[may])","v":0},{"$f":"SUM(tblUitgavencategorie_12[jun])","v":0},{"$f":"SUM(tblUitgavencategorie_12[jul])","v":0},{"$f":"SUM(tblUitgavencategorie_12[aug])","v":0},{"$f":"SUM(tblUitgavencategorie_12[sep])","v":0},{"$f":"SUM(tblUitgavencategorie_12[oct])","v":0},{"$f":"SUM(tblUitgavencategorie_12[nov])","v":0},{"$f":"SUM(tblUitgavencategorie_12[dec])","v":0},{"$f":"SUM(tblUitgavencategorie_12[year])","v":0},{"$f":"tblUitgavencategorie_12[[#Totals],[year]]/12","v":0}]
[]
[]
[null," "]
[{"$nulls":14},{"$f":"SUM(tblUitgavencategorie_13[[#This Row],[jan]:[dec]])","v":0},{"$f":"tblUitgavencategorie_13[[#This Row],[year]]/12","v":0}]
[{"$nulls":14},{"$f":"SUM(tblUitgavencategorie_13[[#This Row],[jan]:[dec]])","v":0},{"$f":"tblUitgavencategorie_13[[#This Row],[year]]/12","v":0}]
[{"$nulls":14},{"$f":"SUM(tblUitgavencategorie_13[[#This Row],[jan]:[dec]])","v":0},{"$f":"tblUitgavencategorie_13[[#This Row],[year]]/12","v":0}]
[null,{"$f":"UPPER(\"TOTAAL \" & B113)","v":"TOTAAL  "},{"$f":"SUM(tblUitgavencategorie_13[jan])","v":0},{"$f":"SUM(tblUitgavencategorie_13[feb])","v":0},{"$f":"SUM(tblUitgavencategorie_13[mar])","v":0},{"$f":"SUM(tblUitgavencategorie_13[apr])","v":0},{"$f":"SUM(tblUitgavencategorie_13[may])","v":0},{"$f":"SUM(tblUitgavencategorie_13[jun])","v":0},{"$f":"SUM(tblUitgavencategorie_13[jul])","v":0},{"$f":"SUM(tblUitgavencategorie_13[aug])","v":0},{"$f":"SUM(tblUitgavencategorie_13[sep])","v":0},{"$f":"SUM(tblUitgavencategorie_13[oct])","v":0},{"$f":"SUM(tblUitgavencategorie_13[nov])","v":0},{"$f":"SUM(tblUitgavencategorie_13[dec])","v":0},{"$f":"SUM(tblUitgavencategorie_13[year])","v":0},{"$f":"tblUitgavencategorie_13[[#Totals],[year]]/12","v":0}]
[]
[]
[null," "]
[{"$nulls":14},{"$f":"SUM(tblUitgavencategorie_14[[#This Row],[jan]:[dec]])","v":0},{"$f":"tblUitgavencategorie_14[[#This Row],[year]]/12","v":0}]
[{"$nulls":14},{"$f":"SUM(tblUitgavencategorie_14[[#This Row],[jan]:[dec]])","v":0},{"$f":"tblUitgavencategorie_14[[#This Row],[year]]/12","v":0}]
[{"$nulls":14},{"$f":"SUM(tblUitgavencategorie_14[[#This Row],[jan]:[dec]])","v":0},{"$f":"tblUitgavencategorie_14[[#This Row],[year]]/12","v":0}]
[null,{"$f":"UPPER(\"TOTAAL\" & B120)","v":"TOTAAL "},{"$f":"SUM(tblUitgavencategorie_14[jan])","v":0},{"$f":"SUM(tblUitgavencategorie_14[feb])","v":0},{"$f":"SUM(tblUitgavencategorie_14[mar])","v":0},{"$f":"SUM(tblUitgavencategorie_14[apr])","v":0},{"$f":"SUM(tblUitgavencategorie_14[may])","v":0},{"$f":"SUM(tblUitgavencategorie_14[jun])","v":0},{"$f":"SUM(tblUitgavencategorie_14[jul])","v":0},{"$f":"SUM(tblUitgavencategorie_14[aug])","v":0},{"$f":"SUM(tblUitgavencategorie_14[sep])","v":0},{"$f":"SUM(tblUitgavencategorie_14[oct])","v":0},{"$f":"SUM(tblUitgavencategorie_14[nov])","v":0},{"$f":"SUM(tblUitgavencategorie_14[dec])","v":0},{"$f":"SUM(tblUitgavencategorie_14[year])","v":0},{"$f":"tblUitgavencategorie_14[[#Totals],[year]]/12","v":0}]
[]
[]
[null," "]
[{"$nulls":14},{"$f":"SUM(tblUitgavencategorie_15[[#This Row],[jan]:[dec]])","v":0},{"$f":"tblUitgavencategorie_15[[#This Row],[year]]/12","v":0}]
[{"$nulls":14},{"$f":"SUM(tblUitgavencategorie_15[[#This Row],[jan]:[dec]])","v":0},{"$f":"tblUitgavencategorie_15[[#This Row],[year]]/12","v":0}]
[{"$nulls":14},{"$f":"SUM(tblUitgavencategorie_15[[#This Row],[jan]:[dec]])","v":0},{"$f":"tblUitgavencategorie_15[[#This Row],[year]]/12","v":0}]
[null,{"$f":"UPPER(\"TOTAAL \" & B127)","v":"TOTAAL  "},{"$f":"SUM(tblUitgavencategorie_15[jan])","v":0},{"$f":"SUM(tblUitgavencategorie_15[feb])","v":0},{"$f":"SUM(tblUitgavencategorie_15[mar])","v":0},{"$f":"SUM(tblUitgavencategorie_15[apr])","v":0},{"$f":"SUM(tblUitgavencategorie_15[may])","v":0},{"$f":"SUM(tblUitgavencategorie_15[jun])","v":0},{"$f":"SUM(tblUitgavencategorie_15[jul])","v":0},{"$f":"SUM(tblUitgavencategorie_15[aug])","v":0},{"$f":"SUM(tblUitgavencategorie_15[sep])","v":0},{"$f":"SUM(tblUitgavencategorie_15[oct])","v":0},{"$f":"SUM(tblUitgavencategorie_15[nov])","v":0},{"$f":"SUM(tblUitgavencategorie_15[dec])","v":0},{"$f":"SUM(tblUitgavencategorie_15[year])","v":0},{"$f":"tblUitgavencategorie_15[[#Totals],[year]]/12","v":0}]

{"sheet":"Instellingen","index":2,"n_rows":59,"n_cols":10,"rows_kept":59}
[null,"FAMILIE BEEKMAN 2012"]
[null,"inkomsten",null,"uitgaven"]
[null,"Salaris en fooien",null," "]
[null,"Rente-inkomsten",null,"Huis",null,"huis",null,"levensonderhoud",null,"kinderen"]
[null,"Dividend",null,"Levensonderhoud",null,"Hypotheek/huur",null,"Boodschappen",null,"Medisch"]
[null,"Ontvangen giften",null,"Kinderen",null,"Energie",null,"Persoonlijke Spullen",null,"Kleding"]
[null,"Restituties/vergoedingen",null,"Vervoer",null,"Gas/olie",null,"Kleding",null,"Schoolgeld"]
[null,"Overboeken van spaargeld",null,"Gezondheid",null,"Water/riool/afval",null,"Schoonmaak",null,"Schoollunch"]
[null,"Overig",null,"Verzekeringen",null,"Telefoon",null,"Uit eten gaan",null,"Schoolspullen"]
[{"$nulls":3},"Onderwijs",null,"Kabel/satelliet",null,"Stomerij",null,"Babysitten"]
[{"$nulls":3},"Liefdadigheid",null,"Internet",null,"Kapper",null,"Speelgoed/games"]
[{"$nulls":3},"Sparen",null,"Meubilair/huishoudelijke apparaten",null,"Overig",null,"Overig"]
[{"$nulls":3},"Schulden",null,"Terrein/tuin"]
[{"$nulls":3},"Vrije Tijd",null,"Huishoudelijke artikelen"]
[{"$nulls":3},"Huisdieren",null,"Onderhoud"]
[{"$nulls":3},"Abonnementen",null,"Verbouwingen"]
[{"$nulls":3},"Vakantie",null,"Overig"]
[{"$nulls":3},"Diversen"]
[]
[{"$nulls":5},"vervoer",null,"gezondheid",null,"verzekeringen"]
[{"$nulls":5},"Autokosten",null,"Dokter/tandarts",null,"Auto"]
[{"$nulls":5},"Brandstof",null,"Medicijnen/geneesmiddelen",null,"Ziektekosten"]
[{"$nulls":5},"Bus/taxi/trein",null,"Contributies voor sportschool",null,"Opstal/inboedel"]
[{"$nulls":5},"Reparatie",null,"Noodgevallen",null,"Leven"]
[{"$nulls":5},"Wegenbelasting",null,"Overig",null,"Overig"]
[{"$nulls":5},"Overig"]
[]
[]
[{"$nulls":5},"onderwijs",null,"liefdadigheid",null,"sparen"]
[{"$nulls":5},"Schoolgeld",null,"Collectes",null,"Buffer voor noodgevallen"]
[{"$nulls":5},"Boeken",null,"Donaties",null,"Overboeken naar spaarrekening"]
[{"$nulls":5},"Muzieklessen",null,"Kerkgeld",null,"Pensioen (bijdrage, pensioenrekening)"]
[{"$nulls":5},"Overig",null,"Overig",null,"Investeringen"]
[{"$nulls":9},"College"]
[{"$nulls":9},"Overig"]
[]
[]
[{"$nulls":5},"schulden",null,"vrije tijd",null,"huisdieren"]
[{"$nulls":5},"Studielening",null,"Video's/dvd's",null,"Voeding"]
[{"$nulls":5},"Overige Leningen",null,"Muziek",null,"Medisch"]
[{"$nulls":5},"Creditcard 1",null,"Games",null,"Speelgoed/gadgets"]
[{"$nulls":5},"Creditcard 2",null,"Huur",null,"Overig"]
[{"$nulls":5},"Creditcard 3",null,"Bioscoop/theater"]
[{"$nulls":5},"Alimentatie voor partner/alimentatie voor kinderen",null,"Concerten/toneelstukken"]
[{"$nulls":5},"Gemeentelijke belastingen",null,"Boeken"]
[{"$nulls":5},"OZB",null,"Hobby's"]
[{"$nulls":5},"Provinciale/lokale belastingen",null,"Film/foto's"]
[{"$nulls":5},"Kosten VvE",null,"Sport"]
[{"$nulls":5},"Juridische kosten",null,"Recreatie buitenshuis"]
[{"$nulls":5},"Overig",null,"Speelgoed/gadgets"]
[{"$nulls":7},"Overig"]
[]
[{"$nulls":5},"abonnementen",null,"vakantie",null,"diversen"]
[{"$nulls":5},"Krant",null,"Reizen",null,"Bankkosten"]
[{"$nulls":5},"Tijdschriften",null,"Overnachtingen",null,"Porto"]
[{"$nulls":5},"Contributies",null,"Eten",null,"Overig"]
[{"$nulls":5},"Lidmaatschappen",null,"Huurauto"]
[{"$nulls":5},"Overig",null,"Vrije tijd"]
[{"$nulls":7},"Overig"]

{"sheet":"grafiekgegevens","index":3,"n_rows":40,"n_cols":16,"rows_kept":40,"hidden":true}
[null,"*** Dit blad moet verborgen blijven ***"]
[]
[]
[null,"periodee",3]
[]
[null,null,"jan","feb","mrt","apr","mei","jun","jul","aug","sep","okt","nov","dec","jaar","gem"]
[null,{"$f":"LOWER(Budget!B127)","v":" "},{"$f":"SUM(tblUitgavencategorie_15[jan])","v":0},{"$f":"SUM(tblUitgavencategorie_15[feb])","v":0},{"$f":"SUM(tblUitgavencategorie_15[mar])","v":0},{"$f":"SUM(tblUitgavencategorie_15[apr])","v":0},{"$f":"SUM(tblUitgavencategorie_15[may])","v":0},{"$f":"SUM(tblUitgavencategorie_15[jun])","v":0},{"$f":"SUM(tblUitgavencategorie_15[jul])","v":0},{"$f":"SUM(tblUitgavencategorie_15[aug])","v":0},{"$f":"SUM(tblUitgavencategorie_15[sep])","v":0},{"$f":"SUM(tblUitgavencategorie_15[oct])","v":0},{"$f":"SUM(tblUitgavencategorie_15[nov])","v":0},{"$f":"SUM(tblUitgavencategorie_15[dec])","v":0},{"$f":"SUM(tblUitgavencategorie_15[year])","v":0},{"$f":"SUM(tblUitgavencategorie_15[avg])","v":0}]
[null,{"$f":"LOWER(Budget!B120)","v":" "},{"$f":"SUM(tblUitgavencategorie_14[jan])","v":0},{"$f":"SUM(tblUitgavencategorie_14[feb])","v":0},{"$f":"SUM(tblUitgavencategorie_14[mar])","v":0},{"$f":"SUM(tblUitgavencategorie_14[apr])","v":0},{"$f":"SUM(tblUitgavencategorie_14[may])","v":0},{"$f":"SUM(tblUitgavencategorie_14[jun])","v":0},{"$f":"SUM(tblUitgavencategorie_14[jul])","v":0},{"$f":"SUM(tblUitgavencategorie_14[aug])","v":0},{"$f":"SUM(tblUitgavencategorie_14[sep])","v":0},{"$f":"SUM(tblUitgavencategorie_14[oct])","v":0},{"$f":"SUM(tblUitgavencategorie_14[nov])","v":0},{"$f":"SUM(tblUitgavencategorie_14[dec])","v":0},{"$f":"SUM(tblUitgavencategorie_14[year])","v":0},{"$f":"SUM(tblUitgavencategorie_14[avg])","v":0}]
[null,{"$f":"LOWER(Budget!B113)","v":" "},{"$f":"SUM(tblUitgavencategorie_13[jan])","v":0},{"$f":"SUM(tblUitgavencategorie_13[feb])","v":0},{"$f":"SUM(tblUitgavencategorie_13[mar])","v":0},{"$f":"SUM(tblUitgavencategorie_13[apr])","v":0},{"$f":"SUM(tblUitgavencategorie_13[may])","v":0},{"$f":"SUM(tblUitgavencategorie_13[jun])","v":0},{"$f":"SUM(tblUitgavencategorie_13[jul])","v":0},{"$f":"SUM(tblUitgavencategorie_13[aug])","v":0},{"$f":"SUM(tblUitgavencategorie_13[sep])","v":0},{"$f":"SUM(tblUitgavencategorie_13[oct])","v":0},{"$f":"SUM(tblUitgavencategorie_13[nov])","v":0},{"$f":"SUM(tblUitgavencategorie_13[dec])","v":0},{"$f":"SUM(tblUitgavencategorie_13[year])","v":0},{"$f":"SUM(tblUitgavencategorie_13[avg])","v":0}]
[null,{"$f":"LOWER(Budget!B106)","v":" "},{"$f":"SUM(tblUitgavencategorie_12[jan])","v":0},{"$f":"SUM(tblUitgavencategorie_12[feb])","v":0},{"$f":"SUM(tblUitgavencategorie_12[mar])","v":0},{"$f":"SUM(tblUitgavencategorie_12[apr])","v":0},{"$f":"SUM(tblUitgavencategorie_12[may])","v":0},{"$f":"SUM(tblUitgavencategorie_12[jun])","v":0},{"$f":"SUM(tblUitgavencategorie_12[jul])","v":0},{"$f":"SUM(tblUitgavencategorie_12[aug])","v":0},{"$f":"SUM(tblUitgavencategorie_12[sep])","v":0},{"$f":"SUM(tblUitgavencategorie_12[oct])","v":0},{"$f":"SUM(tblUitgavencategorie_12[nov])","v":0},{"$f":"SUM(tblUitgavencategorie_12[dec])","v":0},{"$f":"SUM(tblUitgavencategorie_12[year])","v":0},{"$f":"SUM(tblUitgavencategorie_12[avg])","v":0}]
[null,{"$f":"LOWER(Budget!B99)","v":" "},{"$f":"SUM(tblUitgavencategorie_11[jan])","v":0},{"$f":"SUM(tblUitgavencategorie_11[feb])","v":0},{"$f":"SUM(tblUitgavencategorie_11[mar])","v":0},{"$f":"SUM(tblUitgavencategorie_11[apr])","v":0},{"$f":"SUM(tblUitgavencategorie_11[may])","v":0},{"$f":"SUM(tblUitgavencategorie_11[jun])","v":0},{"$f":"SUM(tblUitgavencategorie_11[jul])","v":0},{"$f":"SUM(tblUitgavencategorie_11[aug])","v":0},{"$f":"SUM(tblUitgavencategorie_11[sep])","v":0},{"$f":"SUM(tblUitgavencategorie_11[oct])","v":0},{"$f":"SUM(tblUitgavencategorie_11[nov])","v":0},{"$f":"SUM(tblUitgavencategorie_11[dec])","v":0},{"$f":"SUM(tblUitgavencategorie_11[year])","v":0},{"$f":"SUM(tblUitgavencategorie_11[avg])","v":0}]
[null,{"$f":"LOWER(Budget!B92)","v":"schulden"},{"$f":"SUM(tblUitgavencategorie_10[jan])","v":650},{"$f":"SUM(tblUitgavencategorie_10[feb])","v":200},{"$f":"SUM(tblUitgavencategorie_10[mar])","v":200},{"$f":"SUM(tblUitgavencategorie_10[apr])","v":650},{"$f":"SUM(tblUitgavencategorie_10[may])","v":200},{"$f":"SUM(tblUitgavencategorie_10[jun])","v":200},{"$f":"SUM(tblUitgavencategorie_10[jul])","v":650},{"$f":"SUM(tblUitgavencategorie_10[aug])","v":200},{"$f":"SUM(tblUitgavencategorie_10[sep])","v":200},{"$f":"SUM(tblUitgavencategorie_10[oct])","v":650},{"$f":"SUM(tblUitgavencategorie_10[nov])","v":200},{"$f":"SUM(tblUitgavencategorie_10[dec])","v":200},{"$f":"SUM(tblUitgavencategorie_10[year])","v":{"v":4200,"d":"4,200"}},{"$f":"SUM(tblUitgavencategorie_10[avg])","v":350}]
[null,{"$f":"LOWER(Budget!B85)","v":"sparen"},{"$f":"SUM(tblUitgavencategorie_09[jan])","v":800},{"$f":"SUM(tblUitgavencategorie_09[feb])","v":800},{"$f":"SUM(tblUitgavencategorie_09[mar])","v":800},{"$f":"SUM(tblUitgavencategorie_09[apr])","v":800},{"$f":"SUM(tblUitgavencategorie_09[may])","v":800},{"$f":"SUM(tblUitgavencategorie_09[jun])","v":500},{"$f":"SUM(tblUitgavencategorie_09[jul])","v":500},{"$f":"SUM(tblUitgavencategorie_09[aug])","v":500},{"$f":"SUM(tblUitgavencategorie_09[sep])","v":800},{"$f":"SUM(tblUitgavencategorie_09[oct])","v":800},{"$f":"SUM(tblUitgavencategorie_09[nov])","v":800},{"$f":"SUM(tblUitgavencategorie_09[dec])","v":800},{"$f":"SUM(tblUitgavencategorie_09[year])","v":{"v":8700,"d":"8,700"}},{"$f":"SUM(tblUitgavencategorie_09[avg])","v":725}]
[null,{"$f":"LOWER(Budget!B78)","v":"liefdadigheid"},{"$f":"SUM(tblUitgavencategorie_08[jan])","v":0},{"$f":"SUM(tblUitgavencategorie_08[feb])","v":100},{"$f":"SUM(tblUitgavencategorie_08[mar])","v":100},{"$f":"SUM(tblUitgavencategorie_08[apr])","v":100},{"$f":"SUM(tblUitgavencategorie_08[may])","v":100},{"$f":"SUM(tblUitgavencategorie_08[jun])","v":100},{"$f":"SUM(tblUitgavencategorie_08[jul])","v":100},{"$f":"SUM(tblUitgavencategorie_08[aug])","v":100},{"$f":"SUM(tblUitgavencategorie_08[sep])","v":100},{"$f":"SUM(tblUitgavencategorie_08[oct])","v":100},{"$f":"SUM(tblUitgavencategorie_08[nov])","v":100},{"$f":"SUM(tblUitgavencategorie_08[dec])","v":100},{"$f":"SUM(tblUitgavencategorie_08[year])","v":{"v":1100,"d":"1,100"}},{"$f":"SUM(tblUitgavencategorie_08[avg])","v":{"v":91.66666666666666,"d":"92"}}]
[null,{"$f":"LOWER(Budget!B71)","v":"onderwijs"},{"$f":"SUM(tblUitgavencategorie_07[jan])","v":0},{"$f":"SUM(tblUitgavencategorie_07[feb])","v":0},{"$f":"SUM(tblUitgavencategorie_07[mar])","v":625},{"$f":"SUM(tblUitgavencategorie_07[apr])","v":0},{"$f":"SUM(tblUitgavencategorie_07[may])","v":0},{"$f":"SUM(tblUitgavencategorie_07[jun])","v":0},{"$f":"SUM(tblUitgavencategorie_07[jul])","v":0},{"$f":"SUM(tblUitgavencategorie_07[aug])","v":0},{"$f":"SUM(tblUitgavencategorie_07[sep])","v":625},{"$f":"SUM(tblUitgavencategorie_07[oct])","v":0},{"$f":"SUM(tblUitgavencategorie_07[nov])","v":0},{"$f":"SUM(tblUitgavencategorie_07[dec])","v":0},{"$f":"SUM(tblUitgavencategorie_07[year])","v":{"v":1250,"d":"1,250"}},{"$f":"SUM(tblUitgavencategorie_07[avg])","v":{"v":104.16666666666667,"d":"104"}}]
[null,{"$f":"LOWER(Budget!B64)","v":"verzekeringen"},{"$f":"SUM(tblUitgavencategorie_06[jan])","v":975},{"$f":"SUM(tblUitgavencategorie_06[feb])","v":975},{"$f":"SUM(tblUitgavencategorie_06[mar])","v":975},{"$f":"SUM(tblUitgavencategorie_06[apr])","v":975},{"$f":"SUM(tblUitgavencategorie_06[may])","v":975},{"$f":"SUM(tblUitgavencategorie_06[jun])","v":975},{"$f":"SUM(tblUitgavencategorie_06[jul])","v":975},{"$f":"SUM(tblUitgavencategorie_06[aug])","v":975},{"$f":"SUM(tblUitgavencategorie_06[sep])","v":975},{"$f":"SUM(tblUitgavencategorie_06[oct])","v":975},{"$f":"SUM(tblUitgavencategorie_06[nov])","v":975},{"$f":"SUM(tblUitgavencategorie_06[dec])","v":975},{"$f":"SUM(tblUitgavencategorie_06[year])","v":{"v":11700,"d":"11,700"}},{"$f":"SUM(tblUitgavencategorie_06[avg])","v":975}]
[null,{"$f":"LOWER(Budget!B57)","v":"gezondheid"},{"$f":"SUM(tblUitgavencategorie_05[jan])","v":25},{"$f":"SUM(tblUitgavencategorie_05[feb])","v":60},{"$f":"SUM(tblUitgavencategorie_05[mar])","v":175},{"$f":"SUM(tblUitgavencategorie_05[apr])","v":25},{"$f":"SUM(tblUitgavencategorie_05[may])","v":60},{"$f":"SUM(tblUitgavencategorie_05[jun])","v":60},{"$f":"SUM(tblUitgavencategorie_05[jul])","v":60},{"$f":"SUM(tblUitgavencategorie_05[aug])","v":25},{"$f":"SUM(tblUitgavencategorie_05[sep])","v":175},{"$f":"SUM(tblUitgavencategorie_05[oct])","v":60},{"$f":"SUM(tblUitgavencategorie_05[nov])","v":25},{"$f":"SUM(tblUitgavencategorie_05[dec])","v":25},{"$f":"SUM(tblUitgavencategorie_05[year])","v":775},{"$f":"SUM(tblUitgavencategorie_05[avg])","v":{"v":64.58333333333334,"d":"65"}}]
[null,{"$f":"LOWER(Budget!B48)","v":"vervoer"},{"$f":"SUM(tblUitgavencategorie_04[jan])","v":{"v":1110,"d":"1,110"}},{"$f":"SUM(tblUitgavencategorie_04[feb])","v":{"v":1025,"d":"1,025"}},{"$f":"SUM(tblUitgavencategorie_04[mar])","v":925},{"$f":"SUM(tblUitgavencategorie_04[apr])","v":{"v":1025,"d":"1,025"}},{"$f":"SUM(tblUitgavencategorie_04[may])","v":{"v":1325,"d":"1,325"}},{"$f":"SUM(tblUitgavencategorie_04[jun])","v":{"v":1200,"d":"1,200"}},{"$f":"SUM(tblUitgavencategorie_04[jul])","v":{"v":1100,"d":"1,100"}},{"$f":"SUM(tblUitgavencategorie_04[aug])","v":{"v":1200,"d":"1,200"}},{"$f":"SUM(tblUitgavencategorie_04[sep])","v":{"v":1150,"d":"1,150"}},{"$f":"SUM(tblUitgavencategorie_04[oct])","v":{"v":1025,"d":"1,025"}},{"$f":"SUM(tblUitgavencategorie_04[nov])","v":925},{"$f":"SUM(tblUitgavencategorie_04[dec])","v":925},{"$f":"SUM(tblUitgavencategorie_04[year])","v":{"v":12935,"d":"12,935"}},{"$f":"SUM(tblUitgavencategorie_04[avg])","v":{"v":1077.9166666666665,"d":"1,078"}}]
[null,{"$f":"LOWER(Budget!B39)","v":"kinderen"},{"$f":"SUM(tblUitgavencategorie_03[jan])","v":{"v":2373,"d":"2,373"}},{"$f":"SUM(tblUitgavencategorie_03[feb])","v":500},{"$f":"SUM(tblUitgavencategorie_03[mar])","v":350},{"$f":"SUM(tblUitgavencategorie_03[apr])","v":250},{"$f":"SUM(tblUitgavencategorie_03[may])","v":350},{"$f":"SUM(tblUitgavencategorie_03[jun])","v":450},{"$f":"SUM(tblUitgavencategorie_03[jul])","v":200},{"$f":"SUM(tblUitgavencategorie_03[aug])","v":545},{"$f":"SUM(tblUitgavencategorie_03[sep])","v":350},{"$f":"SUM(tblUitgavencategorie_03[oct])","v":350},{"$f":"SUM(tblUitgavencategorie_03[nov])","v":250},{"$f":"SUM(tblUitgavencategorie_03[dec])","v":350},{"$f":"SUM(tblUitgavencategorie_03[year])","v":{"v":6318,"d":"6,318"}},{"$f":"SUM(tblUitgavencategorie_03[avg])","v":{"v":526.5,"d":"527"}}]
[null,{"$f":"LOWER(Budget!B30)","v":"levensonderhoud"},{"$f":"SUM(tblUitgavencategorie_02[jan])","v":795},{"$f":"SUM(tblUitgavencategorie_02[feb])","v":375},{"$f":"SUM(tblUitgavencategorie_02[mar])","v":550},{"$f":"SUM(tblUitgavencategorie_02[apr])","v":825},{"$f":"SUM(tblUitgavencategorie_02[may])","v":500},{"$f":"SUM(tblUitgavencategorie_02[jun])","v":450},{"$f":"SUM(tblUitgavencategorie_02[jul])","v":875},{"$f":"SUM(tblUitgavencategorie_02[aug])","v":475},{"$f":"SUM(tblUitgavencategorie_02[sep])","v":400},{"$f":"SUM(tblUitgavencategorie_02[oct])","v":825},{"$f":"SUM(tblUitgavencategorie_02[nov])","v":575},{"$f":"SUM(tblUitgavencategorie_02[dec])","v":375},{"$f":"SUM(tblUitgavencategorie_02[year])","v":{"v":7020,"d":"7,020"}},{"$f":"SUM(tblUitgavencategorie_02[avg])","v":585}]
[null,{"$f":"LOWER(Budget!B21)","v":"huis"},{"$f":"SUM(tblUitgavencategorie_01[jan])","v":{"v":1208,"d":"1,208"}},{"$f":"SUM(tblUitgavencategorie_01[feb])","v":{"v":1208,"d":"1,208"}},{"$f":"SUM(tblUitgavencategorie_01[mar])","v":{"v":1233,"d":"1,233"}},{"$f":"SUM(tblUitgavencategorie_01[apr])","v":{"v":1208,"d":"1,208"}},{"$f":"SUM(tblUitgavencategorie_01[may])","v":{"v":1158,"d":"1,158"}},{"$f":"SUM(tblUitgavencategorie_01[jun])","v":{"v":1183,"d":"1,183"}},{"$f":"SUM(tblUitgavencategorie_01[jul])","v":{"v":1283,"d":"1,283"}},{"$f":"SUM(tblUitgavencategorie_01[aug])","v":{"v":1333,"d":"1,333"}},{"$f":"SUM(tblUitgavencategorie_01[sep])","v":{"v":1208,"d":"1,208"}},{"$f":"SUM(tblUitgavencategorie_01[oct])","v":{"v":1158,"d":"1,158"}},{"$f":"SUM(tblUitgavencategorie_01[nov])","v":{"v":1208,"d":"1,208"}},{"$f":"SUM(tblUitgavencategorie_01[dec])","v":{"v":1208,"d":"1,208"}},{"$f":"SUM(tblUitgavencategorie_01[year])","v":{"v":14596,"d":"14,596"}},{"$f":"SUM(tblUitgavencategorie_01[avg])","v":{"v":1216.3333333333335,"d":"1,216"}}]
[]
[]
[]
[]
[null,"Cumulatieve cashflow",{"$f":"SUM(Budget!$C$8:C$8)","v":{"v":-3714,"d":"-3,714"}},{"$f":"SUM(Budget!$C$8:D$8)","v":76},{"$f":"SUM(Budget!$C$8:E$8)","v":{"v":-1857,"d":"-1,857"}},{"$f":"SUM(Budget!$C$8:F$8)","v":{"v":-3670,"d":"-3,670"}},{"$f":"SUM(Budget!$C$8:G$8)","v":-138},{"$f":"SUM(Budget!$C$8:H$8)","v":{"v":-3731,"d":"-3,731"}},{"$f":"SUM(Budget!$C$8:I$8)","v":{"v":-7974,"d":"-7,974"}},{"$f":"SUM(Budget!$C$8:J$8)","v":{"v":-6827,"d":"-6,827"}},{"$f":"SUM(Budget!$C$8:K$8)","v":{"v":-8810,"d":"-8,810"}},{"$f":"SUM(Budget!$C$8:L$8)","v":{"v":-10753,"d":"-10,753"}},{"$f":"SUM(Budget!$C$8:M$8)","v":{"v":-6811,"d":"-6,811"}},{"$f":"SUM(Budget!$C$8:N$8)","v":{"v":-7769,"d":"-7,769"}},{"$f":"SUM(Budget!$C$8:O$8)","v":{"v":-15538,"d":"-15,538"}}]
[]
[null,"Cashflow per jaar positief",{"$f":"IF(Budget!C$8<0,NA(),IF(periode+2<>COLUMN(Budget!C$8),NA(),Budget!C$8))","v":{"$error":"#N/A"}},{"$f":"IF(Budget!D$8<0,NA(),IF(periode+2<>COLUMN(Budget!D$8),NA(),Budget!D$8))","v":{"$error":"#N/A"}},{"$f":"IF(Budget!E$8<0,NA(),IF(periode+2<>COLUMN(Budget!E$8),NA(),Budget!E$8))","v":{"$error":"#N/A"}},{"$f":"IF(Budget!F$8<0,NA(),IF(periode+2<>COLUMN(Budget!F$8),NA(),Budget!F$8))","v":{"$error":"#N/A"}},{"$f":"IF(Budget!G$8<0,NA(),IF(periode+2<>COLUMN(Budget!G$8),NA(),Budget!G$8))","v":{"$error":"#N/A"}},{"$f":"IF(Budget!H$8<0,NA(),IF(periode+2<>COLUMN(Budget!H$8),NA(),Budget!H$8))","v":{"$error":"#N/A"}},{"$f":"IF(Budget!I$8<0,NA(),IF(periode+2<>COLUMN(Budget!I$8),NA(),Budget!I$8))","v":{"$error":"#N/A"}},{"$f":"IF(Budget!J$8<0,NA(),IF(periode+2<>COLUMN(Budget!J$8),NA(),Budget!J$8))","v":{"$error":"#N/A"}},{"$f":"IF(Budget!K$8<0,NA(),IF(periode+2<>COLUMN(Budget!K$8),NA(),Budget!K$8))","v":{"$error":"#N/A"}},{"$f":"IF(Budget!L$8<0,NA(),IF(periode+2<>COLUMN(Budget!L$8),NA(),Budget!L$8))","v":{"$error":"#N/A"}},{"$f":"IF(Budget!M$8<0,NA(),IF(periode+2<>COLUMN(Budget!M$8),NA(),Budget!M$8))","v":{"$error":"#N/A"}},{"$f":"IF(Budget!N$8<0,NA(),IF(periode+2<>COLUMN(Budget!N$8),NA(),Budget!N$8))","v":{"$error":"#N/A"}},{"$f":"IF(Budget!O$8<0,NA(),IF(periode+2<>COLUMN(Budget!O$8),NA(),Budget!O$8))","v":{"$error":"#N/A"}}]
[null,"Cashflow per jaar negatief",{"$f":"IF(Budget!C$8>=0,NA(),IF(periode+2<>COLUMN(Budget!C$8),NA(),Budget!C$8))","v":{"$error":"#N/A"}},{"$f":"IF(Budget!D$8>=0,NA(),IF(periode+2<>COLUMN(Budget!D$8),NA(),Budget!D$8))","v":{"$error":"#N/A"}},{"$f":"IF(Budget!E$8>=0,NA(),IF(periode+2<>COLUMN(Budget!E$8),NA(),Budget!E$8))","v":{"v":-1933,"d":"-1,933"}},{"$f":"IF(Budget!F$8>=0,NA(),IF(periode+2<>COLUMN(Budget!F$8),NA(),Budget!F$8))","v":{"$error":"#N/A"}},{"$f":"IF(Budget!G$8>=0,NA(),IF(periode+2<>COLUMN(Budget!G$8),NA(),Budget!G$8))","v":{"$error":"#N/A"}},{"$f":"IF(Budget!H$8>=0,NA(),IF(periode+2<>COLUMN(Budget!H$8),NA(),Budget!H$8))","v":{"$error":"#N/A"}},{"$f":"IF(Budget!I$8>=0,NA(),IF(periode+2<>COLUMN(Budget!I$8),NA(),Budget!I$8))","v":{"$error":"#N/A"}},{"$f":"IF(Budget!J$8>=0,NA(),IF(periode+2<>COLUMN(Budget!J$8),NA(),Budget!J$8))","v":{"$error":"#N/A"}},{"$f":"IF(Budget!K$8>=0,NA(),IF(periode+2<>COLUMN(Budget!K$8),NA(),Budget!K$8))","v":{"$error":"#N/A"}},{"$f":"IF(Budget!L$8>=0,NA(),IF(periode+2<>COLUMN(Budget!L$8),NA(),Budget!L$8))","v":{"$error":"#N/A"}},{"$f":"IF(Budget!M$8>=0,NA(),IF(periode+2<>COLUMN(Budget!M$8),NA(),Budget!M$8))","v":{"$error":"#N/A"}},{"$f":"IF(Budget!N$8>=0,NA(),IF(periode+2<>COLUMN(Budget!N$8),NA(),Budget!N$8))","v":{"$error":"#N/A"}},{"$f":"IF(Budget!O$8>=0,NA(),IF(periode+2<>COLUMN(Budget!O$8),NA(),Budget!O$8))","v":{"$error":"#N/A"}}]
{"$rows_empty":7}
[null,{"$f":"LOWER(weergeven_lange_periodee)","v":"maart"}]
[null,{"$f":"weergeven_lange_periodee & \" inkomsten\"","v":"maart inkomsten"},{"$f":"INDEX(Budget!$C$6:$P$6,,periode)","v":{"v":4000,"d":"€ 4,000"}}]
[null,{"$f":"weergeven_lange_periodee & \" uitgaven: \" & TEXT(INDEX(Budget!$C$7:$P$7,,periode),\"€ #.##0\")","v":"maart uitgaven: € 5.933"},{"$f":"INDEX(Budget!$C$7:$P$7,,periode)","v":{"v":5933,"d":"€ 5,933"}}]
[null,{"$f":"weergeven_lange_periodee & \" cashflow\"","v":"maart cashflow"},{"$f":"ABS(INDEX(Budget!$C$8:$P$8,,periode))","v":{"v":1933,"d":"€ 1,933"}},{"$f":"REPT(\"-\",INDEX(Budget!$C$8:$P$8,,periode)<0)","v":"-"}]